bitfinex-derivatives/quotes_SOLF0:USTF0_20250212
["timestamp","ask_amount","ask_price","bid_price","bid_amount"]
[1739329638017,1.6163,194.57,194.43,5.1444]
[1739329638216,1.6163,194.57,194.38,2.9979]
[1739329638413,22.74453295,194.49,194.38,2.9979]
[1739329638815,0.03442203,194.45,194.42,0.03802115]
[1739329639315,22.74453295,194.43,194.33,7.07309961]
[1739329639625,37.20900988,194.37,194.25,1.5616]
[1739329639809,37.20900988,194.37,194.36,0.03622632]
[1739329640008,37.20900988,194.37,194.25,1.5616]
[1739329640313,0.03452427,194.33,194.17,37.20900988]
[1739329640515,0.03452427,194.33,194.2,37.20900988]
[1739329640715,37.20900988,194.41,194.24,37.20900988]
[1739329640912,37.20900988,194.35,194.18,37.20900988]
[1739329641115,37.20900988,194.21,194.11,349.32776935]
[1739329641518,37.20900988,194.25,194.11,354.48066935]
[1739329641819,37.20900988,194.22,194.16,0.03484525]
[1739329642016,5.1494,194.25,194.16,0.03484525]
[1739329642214,0.03700742,194.2,194.08,37.20900988]
[1739329642519,0.03700742,194.2,194.09,1.5753]
[1739329642818,6.25506482,194.23,194.19,7.382e-05]
[1739329643118,6.25506482,194.23,194.07,37.20900988]
[1739329643119,0.03574886,194.16,194.07,37.20900988]
[1739329643315,30.82618967,194.19,194.07,37.20900988]
[1739329643918,56.97491672,194.15,194.07,37.20900988]
[1739329644118,34.89861672,194.15,194.08,37.20900988]
[1739329644515,0.03425304,194.13,194.1,0.03616287]
[1739329644817,10.92458967,194.14,194.12,42.36160988]
[1739329645012,37.20900988,194.28,194.12,37.20900988]
[1739329645315,37.20900988,194.32,194.12,37.20900988]
[1739329646022,0.03541111,194.24,194.2,0.03915368]
[1739329646418,10.1093856,194.31,194.16,37.20900988]
[1739329646619,3.88822523,194.31,194.16,37.20900988]
[1739329646824,9.414e-05,194.24,194.2,37.24773521]
[1739329647221,9.414e-05,194.24,194.23,5.1496]
[1739329647425,9.414e-05,194.24,194.2,0.03872533]
[1739329647626,9.414e-05,194.24,194.21,5.1503]
[1739329647826,9.414e-05,194.24,194.2,0.03872533]
[1739329648121,9.414e-05,194.24,194.2,37.24773521]
[1739329648326,9.414e-05,194.24,194.22,5.15]
[1739329649629,9.414e-05,194.24,194.2,0.03872533]
[1739329650124,9.414e-05,194.24,194.2,4.14872533]
[1739329650439,37.20910402,194.24,194.2,6.17872533]
[1739329650624,3.88222969,194.23,194.2,6.17872533]
[1739329650933,37.20900988,194.21,194.16,29.67]
[1739329651330,3.88222969,194.2,194.04,37.20900988]
[1739329651523,3.88222969,194.2,194.08,37.20900988]
[1739329652025,5.151,194.19,194.08,37.20900988]
[1739329652223,5.151,194.19,194.12,0.03710054]
[1739329652224,0.03364944,194.16,194.12,0.03710054]
[1739329653126,0.03364944,194.16,194.12,4.15710054]
[1739329654925,10.05775994,194.24,194.13,37.20900988]
[1739329655125,37.20900988,194.25,194.12,4.15710054]
[1739329655325,37.20900988,194.22,194.12,4.12]
[1739329655529,5.151,194.19,194.12,4.12]
[1739329655731,37.20900988,194.22,194.12,4.12]
[1739329656231,0.03312376,194.19,194.15,0.03622466]
[1739329656627,37.24213364,194.19,194.15,0.03622466]
[1739329656828,5.1524,194.14,194.12,4.12]
[1739329657835,5.1534,194.1,194.08,33.14]
[1739329658033,42.36240988,194.1,194.08,11.23473566]
[1739329658336,42.36240988,194.1,194.07,0.03331213]
[1739329658536,37.20900988,194.1,194.0,10.0]
[1739329658933,37.20900988,194.14,194.0,12.09]
[1739329659127,37.20900988,194.14,194.0,19.14]
[1739329659528,38.79660988,194.18,194.01,37.20900988]
[1739329659835,38.79660988,194.18,194.05,0.03414519]
[1739329659836,0.033109,194.09,194.05,0.03414519]
[1739329660028,37.20900988,194.18,194.08,5.1536]
[1739329660233,37.20900988,194.18,194.01,37.20900988]
[1739329660532,37.20900988,194.18,194.07,5.1539]
[1739329660732,37.20900988,194.18,194.01,37.20900988]
[1739329661131,37.20900988,194.1,194.0,19.14]
[1739329661334,37.20900988,194.1,194.08,0.03399453]
[1739329661538,37.20900988,194.1,194.0,19.14]
[1739329661935,37.20900988,194.1,194.07,0.03799402]
[1739329662336,5.1529,194.12,194.01,5.1556]
[1739329662635,0.0384021,194.1,194.07,0.03865828]
[1739329663035,37.24741198,194.1,194.07,0.03865828]
[1739329663537,5.1537,194.09,194.07,0.03865828]
[1739329664142,37.24741198,194.1,194.07,0.03865828]
[1739329664438,74.45642186,194.1,194.0,35.59]
[1739329664634,37.20900988,194.05,194.0,35.59]
[1739329665134,37.20900988,194.1,194.0,19.14]
[1739329665730,0.03574534,194.07,194.03,0.03260135]
[1739329667742,0.03574534,194.07,194.05,5.1545]
[1739329667939,0.03574534,194.07,194.03,0.03260135]
[1739329668336,0.03574534,194.07,194.03,5.18750135]
[1739329668542,0.03574534,194.07,194.03,0.03260135]
[1739329669045,0.03574534,194.07,194.05,5.1545]
[1739329669641,0.03574534,194.07,194.03,0.03260135]
[1739329670747,0.03574534,194.07,194.05,5.1543]
[1739329671148,0.03574534,194.07,194.03,0.03260135]
[1739329672241,3.89950816,194.06,194.03,2.12260135]
[1739329672748,8.16e-06,194.05,194.03,2.12260135]
[1739329673340,0.03574534,194.07,194.03,2.12260135]
[1739329673741,5.1543,194.06,194.03,2.12260135]
[1739329675155,37.24475522,194.07,194.03,2.12260135]
[1739329675352,5.1548,194.04,194.03,2.12260135]
[1739329675655,37.24475522,194.07,194.01,4.0968]
[1739329675850,5.1556,194.01,194.0,4.0161]
[1739329676150,37.20900988,194.02,193.93,5.1576]
[1739329676453,37.20900988,194.02,193.84,37.20900988]
[1739329676648,37.20900988,194.02,193.88,37.20900988]
[1739329677046,0.03567387,193.95,193.91,0.03480172]
[1739329677256,7.387e-05,193.95,193.91,0.03480172]
[1739329677461,7.387e-05,193.95,193.94,5.1573]
[1739329678959,7.387e-05,193.95,193.94,42.36630988]
[1739329680857,7.387e-05,193.95,193.94,5.1573]
[1739329681363,7.387e-05,193.95,193.92,3.1717]
[1739329681757,7.387e-05,193.95,193.94,5.1575]
[1739329683060,7.387e-05,193.95,193.92,3.1717]
[1739329683264,7.387e-05,193.95,193.91,0.03480172]
[1739329683660,7.387e-05,193.95,193.94,5.1575]
[1739329685365,3.80932012,193.95,193.94,5.1575]
[1739329685866,3.80932012,193.95,193.92,5.158]
[1739329686164,3.80932012,193.95,193.91,0.03480172]
[1739329686364,3.80932012,193.95,193.93,5.1575]
[1739329686365,3.80924625,193.94,193.93,5.1575]
[1739329686666,3.80924625,193.94,193.91,0.03480172]
[1739329687366,3.80924625,193.93,193.91,0.03480172]
[1739329688068,3.80924625,193.92,193.91,0.03480172]
[1739329690366,7.387e-05,193.95,193.91,0.03480172]
[1739329690567,7.387e-05,193.95,193.93,5.1577]
[1739329690871,7.387e-05,193.95,193.91,0.03480172]
[1739329691065,7.387e-05,193.95,193.92,5.1579]
[1739329691261,7.387e-05,193.95,193.91,0.03480172]
[1739329693368,22.98492808,193.95,193.91,0.03480172]
[1739329693766,7.387e-05,193.95,193.91,0.03480172]
[1739329694972,5.15737387,193.95,193.91,0.03480172]
[1739329695271,7.387e-05,193.95,193.91,0.03480172]
[1739329696264,5.15737387,193.95,193.91,0.03480172]
[1739329696872,7.387e-05,193.95,193.91,0.03480172]
[1739329697271,22.98485421,193.92,193.87,17.01]
[1739329697771,22.98492808,193.95,193.87,17.01]
[1739329697971,7.387e-05,193.95,193.87,17.01]
[1739329698575,7.387e-05,193.95,193.9,5.1584]
[1739329698775,7.387e-05,193.95,193.89,0.03624417]
[1739329698974,22.98485421,193.92,193.89,0.03624417]
[1739329699375,28.14222808,193.95,193.89,0.03624417]
[1739329699578,22.98492808,193.95,193.89,0.03624417]
[1739329699878,5.1576,193.94,193.89,0.03624417]
[1739329700076,22.98492808,193.95,193.89,16.86624417]
[1739329700274,7.387e-05,193.95,193.9,5.1585]
[1739329700572,7.387e-05,193.95,193.89,16.86624417]
[1739329702277,7.387e-05,193.95,193.9,1.584]
[1739329702775,7.387e-05,193.95,193.93,5.1576]
[1739329703878,22.98485421,194.11,194.03,5.1549]
[1739329704081,3.77619182,194.07,193.96,22.98485421]
[1739329704373,3.77619182,194.07,193.97,3.0038]
[1739329704573,3.77619182,194.06,193.97,3.0038]
[1739329704976,1.602e-05,194.03,194.0,0.03677531]
[1739329705279,22.98485421,194.17,194.02,22.98485421]
[1739329705774,1.3638,194.19,194.05,22.98485421]
[1739329705978,22.98485421,194.2,194.05,22.98485421]
[1739329706381,0.0389014,194.14,194.1,0.03954325]
[1739329706680,22.98485421,194.26,194.08,22.98485421]
[1739329706877,0.0347301,194.14,194.1,0.037941]
[1739329707078,22.98485421,194.23,194.11,5.1529]
[1739329707279,5.1504,194.21,194.11,5.1529]
[1739329707475,0.0374883,194.14,194.1,0.03339612]
[1739329707675,22.98485421,194.2,194.02,22.98485421]
[1739329707982,23.0231337,194.14,194.1,0.03896864]
[1739329708578,28.1753337,194.14,194.1,0.03896864]
[1739329708784,23.0231337,194.14,194.1,0.03896864]
[1739329709578,0.03827949,194.14,194.1,0.03896864]
[1739329710390,37.26771264,194.23,194.1,17.22896864]
[1739329710586,5.1496,194.24,194.11,3.066]
[1739329710786,37.26771264,194.26,194.11,3.066]
[1739329711187,5.1504,194.21,194.11,3.066]
[1739329711388,37.26771264,194.26,194.14,0.03337264]
[1739329711587,37.26771264,194.26,194.11,3.066]
[1739329711788,0.03676883,194.22,194.18,0.03376297]
[1739329713588,5.1508,194.19,194.18,0.03376297]
[1739329714993,5.1522,194.14,194.1,17.19]
[1739329715993,37.26771264,194.2,194.1,17.19]
[1739329716195,0.03614549,194.14,194.1,17.22936859]
[1739329716797,5.1524,194.13,194.1,17.22936859]
[1739329717096,0.03614549,194.14,194.1,17.22936859]
[1739329718192,3.71264611,194.22,194.1,17.22936859]
[1739329718396,3.71264611,194.22,194.1,17.19]
[1739329718797,3.71264611,194.22,194.12,37.26771264]
[1739329719000,3.71264611,194.25,194.13,1.4991]
[1739329719195,5.1497,194.24,194.15,0.03574049]
[1739329719400,0.03680642,194.19,194.15,0.03574049]
[1739329720495,0.03680642,194.19,194.15,15.99574049]
[1739329720700,0.03680642,194.19,194.16,1.5909]
[1739329721804,0.03680642,194.19,194.15,15.99574049]
[1739329723394,5.1494,194.25,194.16,1.6164]
[1739329723804,5.1489,194.27,194.16,1.6164]
[1739329723996,37.26771264,194.32,194.16,1.6164]
[1739329724601,0.0376318,194.26,194.22,0.03693321]
[1739329727403,5.1496,194.24,194.22,0.03693321]
[1739329727604,37.26771264,194.23,194.22,0.03693321]
[1739329727799,37.26771264,194.23,194.15,15.96]
[1739329728004,5.1516,194.16,194.15,15.96]
[1739329729306,0.03518652,194.17,194.15,15.96]
[1739329729910,5.1516,194.16,194.15,15.96]
[1739329730507,28.08222555,194.16,194.15,8.6419]
[1739329730711,22.93062555,194.16,194.06,3.1422]
[1739329731205,5.1547,194.05,194.01,1.5481]
[1739329732101,5.19410901,194.05,194.01,1.58149405]
[1739329732301,0.03940901,194.05,194.01,1.58149405]
[1739329733107,0.03940901,194.05,194.01,0.03339405]
[1739329733509,5.19420901,194.05,194.01,0.03339405]
[1739329733705,0.03940901,194.05,194.01,0.03339405]
[1739329735509,5.19400901,194.05,194.01,0.03339405]
[1739329735710,0.03940901,194.05,194.01,0.03339405]
[1739329736010,3.69996718,194.09,194.01,0.03339405]
[1739329736210,37.30627883,194.16,194.01,0.03339405]
[1739329736608,5.1533,194.1,194.02,5.1553]
[1739329736803,37.30627883,194.16,194.01,3.98]
[1739329737206,0.03611174,194.1,194.07,0.03955671]
[1739329741917,3.71159143,194.15,194.07,0.03955671]
[1739329742219,3.71159143,194.21,194.07,0.03955671]
[1739329742519,5.1516,194.17,194.1,5.1532]
[1739329742817,3.71159143,194.16,194.06,37.30627883]
[1739329743118,0.03424319,194.15,194.12,0.03706543]
[1739329745218,5.1495,194.25,194.16,5.1514]
[1739329745418,37.30627883,194.28,194.17,1.5584]
[1739329745611,37.30627883,194.31,194.17,1.5584]
[1739329745810,37.30627883,194.28,194.17,1.5584]
[1739329746009,81.32748436,194.32,194.17,1.5584]
[1739329746217,37.30627883,194.31,194.17,1.5584]
[1739329746420,0.03843475,194.26,194.23,0.0390257]
[1739329747315,81.32748436,194.32,194.23,0.0390257]
[1739329747712,81.32748436,194.4,194.23,0.0390257]
[1739329747917,5.1455,194.39,194.31,5.1476]
[1739329748118,5.1455,194.39,194.27,37.30627883]
[1739329748415,81.32748436,194.4,194.24,37.30627883]
[1739329748622,0.03336758,194.35,194.31,0.03960546]
[1739329748817,37.30627883,194.32,194.31,0.03960546]
[1739329749124,5.1485,194.28,194.16,70.63637672]
[1739329749319,37.30627883,194.31,194.16,70.63637672]
[1739329749623,42.45397883,194.31,194.3,0.03358274]
[1739329749819,0.03651672,194.25,194.16,70.63637672]
[1739329750120,37.30627883,194.28,194.16,70.63637672]
[1739329750419,5.1495,194.25,194.19,0.03722367]
[1739329750623,0.03368936,194.22,194.19,0.03722367]
[1739329750918,5.1506,194.2,194.19,0.03722367]
[1739329751122,37.33996819,194.22,194.18,12.47]
[1739329751521,42.45707883,194.19,194.18,8.3667]
[1739329752217,5.1516,194.17,194.07,1.4805]
[1739329752524,0.03866825,194.2,194.11,5.1528]
[1739329752724,37.30627883,194.22,194.1,0.03249755]
[1739329752925,0.03481892,194.17,194.1,0.03249755]
[1739329753117,0.03481892,194.17,194.07,1.4805]
[1739329753317,0.03481892,194.17,194.12,0.03760289]
[1739329756020,0.03481892,194.17,194.12,37.34388172]
[1739329756219,37.30627883,194.28,194.12,37.34388172]
[1739329756423,37.30627883,194.28,194.14,5.1519]
[1739329756620,37.30627883,194.28,194.12,37.30627883]
[1739329757124,37.30627883,194.28,194.16,5.1516]
[1739329757429,0.03372449,194.22,194.18,0.03690657]
[1739329758128,37.34000332,194.22,194.18,0.03690657]
[1739329758429,5.1508,194.19,194.18,0.03690657]
[1739329762628,42.45707883,194.19,194.18,0.03690657]
[1739329763028,5.1508,194.19,194.18,0.03690657]
[1739329763222,0.03372449,194.22,194.18,0.03690657]
[1739329763825,5.1508,194.2,194.18,0.03690657]
[1739329764025,0.03372449,194.22,194.18,0.03690657]
[1739329764431,5.1508,194.19,194.18,0.03690657]
[1739329765630,5.1508,194.19,194.18,0.00120657]
[1739329770132,5.1522,194.14,194.13,15.83]
[1739329770537,64.09709937,194.3,194.07,1.4805]
[1739329770538,22.92089937,194.2,194.07,1.4805]
[1739329770736,5.1521,194.15,194.1,5.153]
[1739329770932,22.92089937,194.2,194.07,1.4805]
[1739329771336,0.03613381,194.15,194.12,0.03884656]
[1739329772438,5.1524,194.13,194.12,0.03884656]
[1739329773930,5.1522,194.14,194.12,0.03884656]
[1739329774135,0.03613381,194.15,194.12,0.03884656]
[1739329774642,5.1524,194.13,194.12,0.03884656]
[1739329774940,0.03613381,194.15,194.12,0.03884656]
[1739329775141,0.03613381,194.15,194.12,5.19134656]
[1739329775734,0.03613381,194.15,194.14,5.1522]
[1739329775942,140.73500428,194.3,194.12,0.03884656]
[1739329775943,22.92089937,194.27,194.12,0.03884656]
[1739329776241,5.15,194.23,194.18,5.1509]
[1739329776437,104.24838373,194.3,194.14,1.5336]
[1739329776632,22.92089937,194.24,194.14,1.5336]
[1739329777038,0.03311834,194.21,194.17,0.03697479]
[1739329777235,5.1506,194.2,194.17,0.03697479]
[1739329777740,0.03311834,194.21,194.17,0.03697479]
[1739329779039,5.1507,194.2,194.17,0.03697479]
[1739329779237,0.03311834,194.21,194.17,0.03697479]
[1739329779842,0.03311834,194.21,194.17,16.87697479]
[1739329780447,5.1489,194.27,194.2,5.1506]
[1739329780645,22.92089937,194.33,194.2,5.1506]
[1739329781045,276.32748436,194.39,194.17,16.84]
[1739329781046,22.92089937,194.3,194.17,16.84]
[1739329781245,15.47,194.38,194.17,16.84]
[1739329781246,22.92089937,194.27,194.17,16.84]
[1739329781447,0.03280794,194.25,194.22,0.0384952]
[1739329781644,22.92089937,194.24,194.22,0.0009952]
[1739329781847,5.1498,194.23,194.22,0.0009952]
[1739329782447,5.1511,194.18,194.17,16.84]
[1739329783348,22.92089937,194.18,194.05,1.5402]
[1739329783644,5.1527,194.12,194.1,0.03927535]
[1739329784945,5.18661308,194.13,194.1,0.03927535]
[1739329785347,5.1527,194.12,194.1,0.03927535]
[1739329785951,5.18671308,194.13,194.1,0.03927535]
[1739329786250,0.03401308,194.13,194.1,0.03927535]
[1739329790452,0.03401308,194.13,194.12,5.1527]
[1739329790655,104.24838373,194.28,194.1,22.96017472]
[1739329790853,104.24838373,194.28,194.1,22.92089937]
[1739329791054,5.1505,194.21,194.15,5.1517]
[1739329791754,0.03672849,194.2,194.16,0.03403545]
[1739329792055,169.43225909,194.32,194.13,22.92089937]
[1739329792056,22.92089937,194.31,194.13,22.92089937]
[1739329792354,0.03707955,194.2,194.17,5.1513]
[1739329792557,22.92089937,194.31,194.16,22.92089937]
[1739329792762,81.32748436,194.32,194.16,22.92089937]
[1739329793054,0.03454987,194.25,194.22,0.03650483]
[1739329793253,5.1486,194.28,194.22,0.03650483]
[1739329793551,0.03699551,194.25,194.22,0.03650483]
[1739329793756,81.32748436,194.32,194.22,0.03650483]
[1739329793955,81.32748436,194.32,194.22,22.9574042]
[1739329794156,5.1479,194.3,194.23,1.6436]
[1739329794456,81.32748436,194.32,194.23,1.6436]
[1739329794657,22.92089937,194.37,194.23,1.6436]
[1739329794848,0.03428379,194.29,194.23,6.1636]
[1739329795156,81.32748436,194.39,194.28,0.03612462]
[1739329795351,5.1474,194.32,194.23,6.1636]
[1739329795556,81.32748436,194.39,194.23,6.1636]
[1739329795857,81.32748436,194.39,194.25,5.1492]
[1739329795858,5.1474,194.32,194.25,5.1492]
[1739329796256,0.03573593,194.3,194.27,0.0329947]
[1739329798661,5.1484,194.28,194.27,0.0329947]
[1739329800660,0.03573593,194.3,194.27,0.0329947]
[1739329800861,5.18373593,194.3,194.27,0.0329947]
[1739329801065,0.03573593,194.3,194.27,5.1815947]
[1739329801361,0.03573593,194.3,194.27,0.0329947]
[1739329801662,22.92089937,194.4,194.3,5.1477]
[1739329801861,22.92089937,194.4,194.28,1.786]
[1739329802162,22.92089937,194.43,194.28,1.786]
[1739329802656,22.92089937,194.43,194.31,5.1474]
[1739329802860,0.03275298,194.37,194.34,0.03289129]
[1739329805056,0.03275298,194.37,194.34,4.53289129]
[1739329805254,37.24512793,194.47,194.34,4.53289129]
[1739329805454,5.1445,194.43,194.37,5.146]
[1739329805663,37.24512793,194.47,194.34,4.5]
[1739329806160,37.17792793,194.47,194.34,4.5]
[1739329806558,5.1454,194.4,194.39,0.03406846]
[1739329807263,0.03591778,194.42,194.39,0.03406846]
[1739329809160,5.1453,194.4,194.39,0.03406846]
[1739329809364,0.03591778,194.42,194.39,0.03406846]
[1739329809564,5.18071778,194.42,194.39,0.03406846]
[1739329809960,0.03591778,194.42,194.39,0.03406846]
[1739329810161,5.145,194.41,194.39,0.03406846]
[1739329811467,0.03591778,194.42,194.39,0.03406846]
[1739329811666,5.1453,194.4,194.39,0.03406846]
[1739329811965,0.03591778,194.42,194.39,0.03406846]
[1739329812164,5.1451,194.41,194.39,0.03406846]
[1739329812768,0.03591778,194.42,194.39,0.03406846]
[1739329813366,0.03591778,194.42,194.4,5.1453]
[1739329813969,0.03591778,194.42,194.39,0.03406846]
[1739329815070,5.1432,194.48,194.44,5.1441]
[1739329815370,37.17792793,194.54,194.44,4.49]
[1739329815570,0.1078,194.55,194.44,4.49]
[1739329815867,37.17792793,194.46,194.44,4.49]
[1739329816170,0.1078,194.55,194.44,4.49]
[1739329816171,37.17792793,194.52,194.44,4.49]
[1739329816671,5.1437,194.47,194.46,0.0366726]
[1739329816971,0.03285831,194.5,194.46,3.9866726]
[1739329817174,5.1434,194.47,194.46,3.9866726]
[1739329818468,5.1434,194.47,194.46,3.8819726]
[1739329818661,5.1434,194.47,194.44,4.49]
[1739329818662,37.17792793,194.49,194.33,1.7444]
[1739329818868,37.17792793,194.44,194.33,1.7444]
[1739329819673,0.03692997,194.4,194.37,0.03925097]
[1739329819874,37.17792793,194.47,194.33,1.7444]
[1739329820068,0.0378423,194.4,194.37,0.03310914]
[1739329820273,37.17792793,194.47,194.37,0.03310914]
[1739329820467,0.03822985,194.4,194.38,5.1458]
[1739329820669,37.17792793,194.47,194.37,0.03310914]
[1739329820973,0.03281441,194.41,194.37,0.03310914]
[1739329821676,5.1453,194.4,194.37,0.03310914]
[1739329821975,0.03281441,194.41,194.37,0.03310914]
[1739329823373,5.1453,194.4,194.37,0.03310914]
[1739329824080,0.03281441,194.41,194.37,0.03310914]
[1739329825680,5.17791441,194.41,194.37,5.17910914]
[1739329825979,0.03281441,194.41,194.37,0.03310914]
[1739329826280,0.03281441,194.41,194.38,5.1457]
[1739329826480,0.03281441,194.41,194.37,0.03310914]
[1739329826972,5.1453,194.4,194.37,0.03310914]
[1739329827177,0.03281441,194.41,194.37,0.03310914]
[1739329827372,5.17781441,194.41,194.37,5.17900914]
[1739329827882,0.03281441,194.41,194.38,5.1456]
[1739329828083,0.03281441,194.41,194.37,0.03310914]
[1739329829081,22.87982622,194.51,194.37,0.03310914]
[1739329829082,5.1437,194.46,194.37,0.03310914]
[1739329829283,22.87982622,194.51,194.36,22.87982622]
[1739329829585,5.1434,194.48,194.43,5.1445]
[1739329829780,81.32748436,194.53,194.36,22.87982622]
[1739329830282,0.03909112,194.46,194.43,0.03568497]
[1739329830486,22.87982622,194.54,194.43,0.03568497]
[1739329830676,0.03647272,194.46,194.43,0.03568497]
[1739329830881,22.87982622,194.54,194.43,0.03568497]
[1739329831083,22.87982622,194.51,194.43,0.03568497]
[1739329831282,0.03855533,194.5,194.34,1.7729]
[1739329831584,5.1434,194.48,194.42,5.1445]
[1739329831788,0.03455235,194.44,194.41,0.03498239]
[1739329831986,5.1432,194.48,194.42,5.1445]
[1739329832187,0.03539566,194.44,194.41,0.03498239]
[1739329832388,22.87982622,194.48,194.41,0.03498239]
[1739329832686,0.03299032,194.44,194.34,1.7729]
[1739329833083,0.03299032,194.44,194.37,0.0346819]
[1739329835782,0.03299032,194.44,194.43,5.1445]
[1739329836981,0.03299032,194.44,194.42,0.0378632]
[1739329838893,5.17719032,194.44,194.42,0.0378632]
[1739329839291,0.03299032,194.44,194.42,0.0378632]
[1739329839890,5.17739032,194.44,194.42,0.0378632]
[1739329840091,0.03299032,194.44,194.42,0.0378632]
[1739329840494,5.1445,194.43,194.42,0.0378632]
[1739329844788,5.1445,194.43,194.33,1.7444]
[1739329844994,5.1469,194.34,194.25,1.8292]
[1739329845194,22.87982622,194.38,194.26,1.7267]
[1739329845391,22.87982622,194.44,194.27,22.87982622]
[1739329845696,5.1455,194.39,194.27,22.87982622]
[1739329845891,22.87982622,194.44,194.27,22.87982622]
[1739329846093,0.03299676,194.35,194.32,5.1472]
[1739329846493,0.03523972,194.35,194.32,5.18267721]
[1739329847498,0.03523972,194.35,194.32,0.03547721]
[1739329850502,5.1469,194.34,194.32,0.03547721]
[1739329850691,0.03523972,194.35,194.32,0.03547721]
[1739329851497,0.03523972,194.35,194.34,5.1469]
[1739329852099,5.1455,194.4,194.34,5.1469]
[1739329852398,22.87982622,194.47,194.34,5.1469]
[1739329852800,22.87982622,194.47,194.35,5.1465]
[1739329853094,22.87982622,194.47,194.3,22.87982622]
[1739329853299,0.03797251,194.43,194.39,0.03572088]
[1739329853901,5.1453,194.4,194.39,2.088e-05]
[1739329855701,22.87982622,194.41,194.26,6.8755]
[1739329855904,5.1481,194.3,194.26,6.8755]
[1739329856707,5.1476,194.32,194.28,5.1484]
[1739329856907,0.038063,194.3,194.28,5.1484]
[1739329858011,0.038063,194.3,194.27,5.1487]
[1739329858506,5.1471,194.34,194.27,22.87982622]
[1739329859211,5.1471,194.34,194.29,5.148]
[1739329859709,0.03368137,194.33,194.3,0.03458155]
[1739329860113,5.18088137,194.33,194.3,0.03458155]
[1739329860411,0.03368137,194.33,194.32,5.1474]
[1739329861112,0.1226,194.44,194.3,22.91440777]
[1739329861313,5.1449,194.42,194.36,22.87982622]
[1739329861513,30.87910599,194.5,194.36,22.87982622]
[1739329861713,20.00922043,194.5,194.39,22.87982622]
[1739329861907,20.00922043,194.5,194.42,22.87982622]
[1739329862215,20.00922043,194.5,194.45,22.87982622]
[1739329862415,20.00922043,194.5,194.48,5.1432]
[1739329862713,78.57458436,194.49,194.48,5.1432]
[1739329862908,78.57458436,194.49,194.48,28.02302622]
[1739329863112,162.29535177,194.55,194.48,22.87982622]
[1739329863611,162.29535177,194.55,194.51,22.87982622]
[1739329863814,162.29535177,194.55,194.53,5.1418]
[1739329864425,159.54285177,194.55,194.53,5.1418]
[1739329864614,159.54285177,194.55,194.51,28.02212622]
[1739329864811,159.54285177,194.55,194.54,22.87982622]
[1739329865024,156.79025177,194.55,194.54,22.87982622]
[1739329865410,5.1404,194.59,194.51,22.87982622]
[1739329865615,27.23982622,194.68,194.51,22.87982622]
[1739329866116,5.1406,194.58,194.51,22.87982622]
[1739329866316,22.87982622,194.68,194.51,22.87982622]
[1739329866622,27.23982622,194.68,194.58,0.03498268]
[1739329866810,5.1387,194.65,194.58,0.03498268]
[1739329867014,22.87982622,194.68,194.58,0.03498268]
[1739329867313,22.87982622,194.65,194.58,0.03498268]
[1739329867515,22.87982622,194.68,194.58,0.03498268]
[1739329868218,5.14,194.6,194.58,0.03498268]
[1739329869818,5.1403,194.59,194.58,0.03498268]
[1739329871519,22.87982622,194.68,194.58,0.03498268]
[1739329872419,5.1387,194.65,194.58,0.03498268]
[1739329872619,22.87982622,194.68,194.58,0.03498268]
[1739329872821,22.87982622,194.71,194.58,0.03498268]
[1739329873015,3.5395,194.7,194.6,22.87982622]
[1739329873218,3.5395,194.7,194.62,0.03409559]
[1739329873522,5.1385,194.66,194.62,0.03409559]
[1739329874723,5.1389,194.64,194.62,0.03409559]
[1739329875118,3.5395,194.7,194.62,0.03409559]
[1739329875923,1.7052,194.69,194.62,0.03409559]
[1739329876118,5.1392,194.63,194.62,0.03409559]
[1739329879917,1.7052,194.69,194.62,0.03409559]
[1739329880321,3.5395,194.7,194.62,0.03409559]
[1739329880729,5.139,194.64,194.62,0.03409559]
[1739329880922,3.5395,194.7,194.62,0.03409559]
[1739329881222,1.7704,194.73,194.62,0.03409559]
[1739329881425,195.0,194.74,194.62,22.91392181]
[1739329881626,22.87982622,194.77,194.62,22.91392181]
[1739329881819,22.87982622,194.77,194.62,22.87982622]
[1739329882024,22.87982622,194.77,194.68,0.03692808]
[1739329882723,5.1376,194.69,194.68,0.03692808]
[1739329883931,22.87982622,194.77,194.68,0.03692808]
[1739329884428,5.1376,194.69,194.68,0.03692808]
[1739329885120,5.1373,194.71,194.68,0.03692808]
[1739329885528,22.87982622,194.77,194.68,0.03692808]
[1739329885728,5.1375,194.7,194.68,0.03692808]
[1739329886022,5.296,194.78,194.68,0.03692808]
[1739329886428,5.296,194.78,194.68,5.17472808]
[1739329886627,3.5256,194.78,194.68,0.03692808]
[1739329887131,5.136,194.75,194.7,5.1373]
[1739329887524,5.136,194.75,194.71,0.03733626]
[1739329887827,5.1363,194.74,194.71,0.03733626]